bitfinex-derivatives/quotes_BNBF0:USTF0_20230901
["timestamp","ask_amount","ask_price","bid_price","bid_amount"]
[1693597392873,0.17274246,213.21,212.83,0.07694937]
[1693597393073,0.17274246,213.2,212.83,0.07694937]
[1693597393274,0.17274246,213.22,212.82,0.07694937]
[1693597393474,0.17274246,213.21,212.82,0.07694937]
[1693597393674,0.17274246,213.22,212.82,0.07694937]
[1693597393876,0.17274246,213.21,212.82,0.07694937]
[1693597394069,0.17274246,213.2,212.82,0.07694937]
[1693597394270,0.17274246,213.22,212.82,0.07694937]
[1693597394471,0.17274246,213.21,212.82,0.07694937]
[1693597394673,0.17274246,213.2,212.82,0.07694937]
[1693597394976,0.17274246,213.19,212.82,0.07694937]
[1693597395175,0.17274246,213.22,212.82,0.07694937]
[1693597395475,0.17274246,213.21,212.82,0.07694937]
[1693597395676,0.17274246,213.22,212.82,0.07694937]
[1693597395875,0.17274246,213.21,212.82,0.07694937]
[1693597396076,0.17274246,213.2,212.82,0.07694937]
[1693597396277,0.17274246,213.22,212.82,0.07694937]
[1693597396576,0.17274246,213.21,212.82,0.07694937]
[1693597396774,5.12757544,213.23,212.82,0.07694937]
[1693597396775,0.17274246,213.22,212.82,0.07694937]
[1693597396976,0.17274246,213.21,212.82,0.07694937]
[1693597397176,0.17274246,213.22,212.82,0.07694937]
[1693597397375,0.17274246,213.21,212.82,0.07694937]
[1693597397574,0.17274246,213.2,212.82,0.07694937]
[1693597397771,0.17274246,213.22,212.82,0.07694937]
[1693597397971,0.17274246,213.21,212.82,0.07694937]
[1693597398174,0.17274246,213.2,212.82,0.07694937]
[1693597398376,0.17274246,213.22,212.82,0.07694937]
[1693597398676,0.17274246,213.21,212.82,0.07694937]
[1693597398873,0.17274246,213.2,212.81,0.07694937]
[1693597399073,5.12757544,213.23,212.81,0.07694937]
[1693597399074,0.17274246,213.19,212.81,0.07694937]
[1693597399379,0.17274246,213.18,212.81,0.07694937]
[1693597399676,0.17274246,213.17,212.81,0.07694937]
[1693597399878,0.17274246,213.22,212.81,0.07694937]
[1693597400078,0.17274246,213.21,212.81,0.07694937]
[1693597400280,0.17274246,213.2,212.81,0.07694937]
[1693597400579,0.17274246,213.19,212.81,0.07694937]
[1693597400778,0.17274246,213.18,212.82,0.07694937]
[1693597400972,0.17274246,213.17,212.82,0.07694937]
[1693597401178,0.17274246,213.16,212.82,0.07694937]
[1693597401373,0.17274246,213.22,212.82,0.07694937]
[1693597401573,0.17274246,213.21,212.82,0.07694937]
[1693597401875,0.17274246,213.2,212.82,0.07694937]
[1693597402177,0.17274246,213.19,212.82,0.07694937]
[1693597402372,0.17274246,213.22,212.82,0.07694937]
[1693597402577,0.17274246,213.21,212.81,0.07694937]
[1693597402772,0.17274246,213.22,212.81,0.07694937]
[1693597402978,0.17274246,213.21,212.81,0.07694937]
[1693597403174,0.17274246,213.22,212.81,0.07694937]
[1693597403378,0.17274246,213.21,212.81,0.07694937]
[1693597403573,0.17274246,213.22,212.81,0.07694937]
[1693597403776,0.17274246,213.21,212.81,0.07694937]
[1693597403973,0.17274246,213.22,212.82,0.07694937]
[1693597404176,0.17274246,213.21,212.82,0.07694937]
[1693597404376,0.17274246,213.22,212.82,0.07694937]
[1693597404576,0.17274246,213.21,212.82,0.07694937]
[1693597404774,0.17274246,213.22,212.82,0.07694937]
[1693597404973,0.17274246,213.21,212.81,0.07694937]
[1693597405175,0.17274246,213.22,212.81,0.07694937]
[1693597405375,0.17274246,213.21,212.81,0.07694937]
[1693597405581,0.17274246,213.22,212.81,0.07694937]
[1693597405776,0.17274246,213.21,212.81,0.07694937]
[1693597406080,0.17274246,213.2,212.81,0.07694937]
[1693597406280,0.17274246,213.22,212.81,0.07694937]
[1693597406583,0.17274246,213.21,212.81,0.07694937]
[1693597406783,0.17274246,213.22,212.81,0.07694937]
[1693597407080,0.17274246,213.21,212.82,0.07694937]
[1693597407275,0.17274246,213.22,212.82,0.07694937]
[1693597407481,5.12757544,213.23,212.82,0.07694937]
[1693597407482,0.17274246,213.21,212.82,0.07694937]
[1693597407781,0.17274246,213.2,212.82,0.07694937]
[1693597407975,0.17274246,213.22,212.82,0.07694937]
[1693597408174,5.12757544,213.23,212.82,0.07694937]
[1693597408175,0.17274246,213.21,212.82,0.07694937]
[1693597408376,0.17274246,213.22,212.82,0.07694937]
[1693597408584,0.17274246,213.21,212.82,0.07694937]
[1693597408882,0.17274246,213.2,212.82,0.07694937]
[1693597409083,0.17274246,213.22,212.82,0.07694937]
[1693597409279,0.17274246,213.21,212.82,0.07694937]
[1693597409475,0.17274246,213.2,212.82,0.07694937]
[1693597409680,0.17274246,213.19,212.82,0.07694937]
[1693597409880,0.17274246,213.18,212.82,0.07694937]
[1693597410079,0.17274246,213.17,212.82,0.07694937]
[1693597410279,0.17274246,213.16,212.82,0.07694937]
[1693597410482,0.17274246,213.15,212.82,0.07694937]
[1693597410684,0.17274246,213.21,212.82,0.07694937]
[1693597410880,0.17274246,213.2,212.82,0.07694937]
[1693597411083,0.17274246,213.19,212.82,0.07694937]
[1693597411284,0.17274246,213.18,212.82,0.07694937]
[1693597411485,5.12757544,213.22,212.82,0.07694937]
[1693597411486,0.17274246,213.17,212.82,0.07694937]
[1693597411684,0.17274246,213.21,212.82,0.07694937]
[1693597411882,0.17274246,213.2,212.81,0.07694937]
[1693597412086,0.17274246,213.21,212.81,0.07694937]
[1693597412285,0.17274246,213.2,212.81,0.07694937]
[1693597414489,0.17274246,213.2,212.82,0.07694937]
[1693597443495,0.17274246,213.2,212.83,0.07694937]
[1693597460917,5.12757544,213.21,212.83,0.07694937]
[1693597464420,0.17267374,213.2,212.83,0.07694937]
[1693597467623,0.17267374,213.19,212.83,0.07694937]
[1693597467816,0.17267374,213.21,212.83,0.07694937]
[1693597468023,0.17267374,213.2,212.83,0.07694937]
[1693597468223,0.17267374,213.19,212.83,0.07694937]
[1693597468425,0.17267374,213.18,212.83,0.07694937]
[1693597468623,0.17267374,213.17,212.83,0.07694937]
[1693597468824,0.17267374,213.21,212.83,0.07694937]
[1693597469022,0.17267374,213.2,212.83,0.07694937]
[1693597469327,0.17267374,213.19,212.83,0.07694937]
[1693597469625,0.17267374,213.18,212.83,0.07694937]
[1693597469826,0.17267374,213.21,212.84,0.07694937]
[1693597470019,0.17267374,213.2,212.84,0.07694937]
[1693597470223,7.17860561,213.25,212.84,0.07694937]
[1693597470224,0.17267374,213.19,212.84,0.07694937]
[1693597470424,0.17267374,213.22,212.84,0.07694937]
[1693597470627,0.17267374,213.21,212.84,0.07694937]
[1693597470926,0.17267374,213.2,212.84,0.07694937]
[1693597471129,0.17267374,213.19,212.84,0.07694937]
[1693597471327,0.17267374,213.22,212.84,0.07694937]
[1693597471625,0.17267374,213.21,212.84,0.07694937]
[1693597471828,0.17267374,213.2,212.84,0.07694937]
[1693597472126,0.17267374,213.19,212.84,0.07694937]
[1693597472320,0.17267374,213.18,212.83,0.07694937]
[1693597472526,0.17267374,213.17,212.83,0.07694937]
[1693597472722,0.17267374,213.16,212.83,0.07694937]
[1693597472923,0.17267374,213.22,212.83,0.07694937]
[1693597473122,0.17267374,213.21,212.83,0.07694937]
[1693597473325,0.17267374,213.2,212.83,0.07694937]
[1693597473526,0.17267374,213.19,212.83,0.07694937]
[1693597473727,0.17267374,213.22,212.83,0.07694937]
[1693597473929,0.17267374,213.21,212.83,0.07694937]
[1693597474228,0.17267374,213.2,212.83,0.07694937]
[1693597474422,0.17267374,213.19,212.83,0.07694937]
[1693597474627,0.17267374,213.22,212.83,0.07694937]
[1693597474823,0.17267374,213.21,212.83,0.07694937]
[1693597475130,0.17267374,213.2,212.83,0.07694937]
[1693597475329,0.17267374,213.19,212.83,0.07694937]
[1693597475530,0.17267374,213.22,212.83,0.07694937]
[1693597475729,0.17267374,213.21,212.83,0.07694937]
[1693597475929,0.17267374,213.22,212.83,0.07694937]
[1693597476128,0.17267374,213.21,212.83,0.07694937]
[1693597476328,0.17267374,213.22,212.83,0.07694937]
[1693597476525,0.17267374,213.21,212.83,0.07694937]
[1693597476729,0.17267374,213.2,212.83,0.07694937]
[1693597476924,0.17267374,213.19,212.83,0.07694937]
[1693597477130,0.17267374,213.18,212.83,0.07694937]
[1693597477329,0.17267374,213.17,212.83,0.07694937]
[1693597477531,0.17267374,213.16,212.83,0.07694937]
[1693597477732,0.17267374,213.15,212.83,0.07694937]
[1693597477933,0.17267374,213.14,212.83,0.07694937]
[1693597478234,0.17267374,213.13,212.83,0.07694937]
[1693597478432,0.17267374,213.22,212.83,0.07694937]
[1693597478631,0.17266578,213.21,212.83,0.07694937]
[1693597478832,0.17266578,213.22,212.83,0.07694937]
[1693597479031,0.17266578,213.21,212.83,0.07694937]
[1693597479233,0.17266578,213.2,212.83,0.07694937]
[1693597479433,0.17266578,213.19,212.83,0.07694937]
[1693597479633,0.17266578,213.22,212.83,0.07694937]
[1693597479832,0.17266578,213.21,212.83,0.07694937]
[1693597480028,0.17266578,213.22,212.83,0.07694937]
[1693597480230,0.17266578,213.21,212.83,0.07694937]
[1693597480426,0.17266578,213.22,212.83,0.07694937]
[1693597480631,0.17266578,213.21,212.83,0.07694937]
[1693597480931,0.17266578,213.2,212.83,0.07694937]
[1693597481133,0.17266578,213.19,212.83,0.07694937]
[1693597481334,0.17266578,213.22,212.83,0.07694937]
[1693597481530,0.17266578,213.21,212.83,0.07694937]
[1693597481732,0.17266578,213.22,212.83,0.07694937]
[1693597481935,0.17266578,213.21,212.83,0.07694937]
[1693597482135,0.17266578,213.2,212.83,0.07694937]
[1693597482335,0.17266578,213.22,212.83,0.07694937]
[1693597482532,0.17266578,213.21,212.83,0.07694937]
[1693597482731,0.17266578,213.22,212.83,0.07694937]
[1693597482935,0.17266578,213.21,212.83,0.07694937]
[1693597483131,0.17266578,213.2,212.83,0.07694937]
[1693597483337,0.17266578,213.19,212.83,0.07694937]
[1693597483535,0.17266578,213.18,212.83,0.07694937]
[1693597483737,0.17266578,213.22,212.83,0.07694937]
[1693597484038,5.12757544,213.23,212.83,0.07694937]
[1693597484039,0.17266578,213.21,212.83,0.07694937]
[1693597484237,0.17266578,213.2,212.83,0.07694937]
[1693597484435,0.17266578,213.22,212.83,0.07694937]
[1693597484641,0.17266578,213.21,212.83,0.07694937]
[1693597484942,0.17266578,213.2,212.83,0.07694937]
[1693597485238,0.17266578,213.19,212.83,0.07694937]
[1693597485438,0.17266578,213.18,212.83,0.07694937]
[1693597485639,0.17266578,213.22,212.83,0.07694937]
[1693597485834,0.17266578,213.21,212.83,0.07694937]
[1693597486034,0.17266578,213.2,212.83,0.07694937]
[1693597486238,0.17266578,213.19,212.83,0.07694937]
[1693597486540,0.17266578,213.18,212.83,0.07694937]
[1693597486734,0.17266578,213.17,212.83,0.07694937]
[1693597486938,0.17266578,213.16,212.83,0.07694937]
[1693597487134,0.17266578,213.22,212.83,0.07694937]
[1693597487334,0.17266578,213.21,212.83,0.07694937]
[1693597487539,0.17266578,213.2,212.83,0.07694937]
[1693597487838,0.17266578,213.19,212.83,0.07694937]
[1693597488035,0.17266578,213.22,212.83,0.07694937]
[1693597488343,0.17266578,213.21,212.83,0.07694937]
[1693597488534,0.17266578,213.22,212.83,0.07694937]
[1693597488738,0.17266578,213.21,212.83,0.07694937]
[1693597488939,0.17266578,213.2,212.83,0.07694937]
[1693597489135,0.17266578,213.22,212.83,0.07694937]
[1693597489338,0.17266578,213.21,212.83,0.07694937]
[1693597489537,5.12757544,213.23,212.83,0.07694937]
[1693597489538,0.17266578,213.2,212.83,0.07694937]
[1693597489738,0.17266578,213.22,212.83,0.07694937]
[1693597489939,0.17266578,213.21,212.83,0.07694937]
[1693597490139,5.12757544,213.23,212.83,0.07694937]
[1693597490140,0.17266578,213.2,212.83,0.07694937]
[1693597490340,0.17266578,213.19,212.83,0.07694937]
[1693597490537,0.17266578,213.18,212.83,0.07694937]
[1693597490742,0.17266578,213.22,212.83,0.07694937]
[1693597490937,0.17266578,213.21,212.83,0.07694937]
[1693597491142,0.17266578,213.2,212.83,0.07694937]
[1693597491342,0.17266578,213.19,212.83,0.07694937]
[1693597491546,0.17266578,213.22,212.83,0.07694937]
[1693597491737,0.17266578,213.21,212.83,0.07694937]
[1693597491940,0.17266578,213.2,212.83,0.07694937]
[1693597492141,0.17266578,213.22,212.83,0.07694937]
[1693597492344,0.17266578,213.21,212.83,0.07694937]
[1693597492544,0.17266578,213.22,212.83,0.07694937]
[1693597492746,0.17266578,213.21,212.83,0.07694937]
[1693597492940,0.17266578,213.2,212.83,0.07694937]
[1693597493140,0.17266578,213.22,212.83,0.07694937]
[1693597493340,5.12757544,213.23,212.83,0.07694937]
[1693597493341,0.17266578,213.21,212.83,0.07694937]
[1693597493541,0.17266578,213.2,212.83,0.07694937]
[1693597493744,0.17266578,213.22,212.83,0.07694937]
[1693597493945,0.17266578,213.21,212.83,0.07694937]
[1693597494143,0.17266578,213.2,212.83,0.07694937]
[1693597494343,0.17266578,213.22,212.83,0.07694937]
[1693597494646,0.17266578,213.21,212.83,0.07694937]
[1693597494849,0.17266578,213.22,212.83,0.07694937]
[1693597495149,0.17266578,213.21,212.83,0.07694937]
[1693597495344,0.17266578,213.2,212.83,0.07694937]
[1693597495540,5.12757544,213.23,212.83,0.07694937]
[1693597495541,0.17266578,213.22,212.83,0.07694937]
[1693597495742,0.17266578,213.21,212.83,0.07694937]
[1693597495945,0.17266578,213.2,212.83,0.07694937]
[1693597496144,0.17266578,213.19,212.83,0.07694937]
[1693597496350,0.17266578,213.18,212.83,0.07694937]
[1693597496550,0.17266578,213.22,212.83,0.07694937]
[1693597496749,0.17266578,213.21,212.83,0.07694937]
[1693597496948,0.17266578,213.2,212.83,0.07694937]
[1693597497152,0.17266578,213.19,212.83,0.07694937]
[1693597497345,0.17266578,213.22,212.84,0.07694937]
[1693597497648,0.17266578,213.21,212.84,0.07694937]
[1693597497849,0.17266578,213.22,212.84,0.07694937]
[1693597498054,0.17266578,213.21,212.84,0.07694937]
[1693597498244,0.17266578,213.2,212.84,0.07694937]
[1693597498448,0.17266578,213.22,212.84,0.07694937]
[1693597498649,0.17266578,213.21,212.84,0.07694937]
[1693597498855,0.17266578,213.2,212.84,0.07694937]
[1693597499045,0.17266578,213.22,212.84,0.07694937]
[1693597499249,0.17266578,213.21,212.84,0.07694937]
[1693597499450,0.17266578,213.2,212.84,0.07694937]
[1693597499653,0.17266578,213.19,212.84,0.07694937]
[1693597499849,0.17266578,213.18,212.84,0.07694937]
[1693597500052,0.17266578,213.21,212.84,0.07694937]
[1693597500252,0.17266578,213.2,212.84,0.07694937]
[1693597500453,0.17266578,213.19,212.84,0.07694937]
[1693597500653,0.17266578,213.21,212.84,0.07694937]
[1693597500953,0.17266578,213.2,212.84,0.07694937]
[1693597501154,0.17266578,213.21,212.84,0.07694937]
[1693597501356,0.17266578,213.2,212.84,0.07694937]
[1693597501548,0.17266578,213.21,212.84,0.07694937]
[1693597501752,0.17266578,213.2,212.84,0.07694937]
[1693597501955,0.17266578,213.21,212.84,0.07694937]
[1693597502154,0.17266578,213.2,212.84,0.07694937]
[1693597502354,0.17266578,213.19,212.84,0.07694937]
[1693597502554,0.17266578,213.21,212.84,0.07694937]
[1693597502756,0.17266578,213.2,212.84,0.07694937]
[1693597502957,0.17266578,213.19,212.84,0.07694937]
[1693597503159,0.17266578,213.21,212.84,0.07694937]
[1693597503359,0.17266578,213.2,212.84,0.07694937]
[1693597503559,0.17266578,213.19,212.84,0.07694937]
[1693597503760,0.17266578,213.18,212.83,0.07694937]
[1693597504060,0.17266578,213.17,212.83,0.07694937]
[1693597504261,0.17266578,213.16,212.83,0.07694937]
[1693597504458,0.17266578,213.15,212.83,0.07694937]
[1693597504661,0.17266578,213.2,212.83,0.07694937]
[1693597504861,0.17266578,213.19,212.82,0.07694937]
[1693597505062,0.17266578,213.2,212.82,0.07694937]
[1693597505256,0.17266578,213.19,212.82,0.07694937]
[1693597505562,0.17266578,213.18,212.82,0.07694937]
[1693597505755,0.17266578,213.17,212.82,0.07694937]
[1693597505961,0.17266578,213.16,212.82,0.07694937]
[1693597506262,0.17266578,213.15,212.82,0.07694937]
[1693597506458,0.17266578,213.2,212.82,0.07694937]
[1693597506662,0.17266578,213.19,212.82,0.07694937]
[1693597506857,0.17266578,213.2,212.82,0.07694937]
[1693597507062,0.17266578,213.2,212.76,0.07694937]
[1693597507656,5.12757544,213.18,212.73,0.07694937]
[1693597507861,0.17266578,213.17,212.74,0.8636869]
[1693597508662,0.17266578,213.16,212.72,0.07694937]
[1693597508864,0.17266578,213.18,212.73,0.86367097]
[1693597509066,0.17266578,213.17,212.73,0.86367097]
[1693597509266,0.17266578,213.18,212.73,0.86367097]
[1693597509767,0.17266578,213.18,212.74,0.86367097]
[1693597509969,0.17266578,213.18,212.71,0.07694937]
[1693597510163,0.17266578,213.18,212.72,0.86366246]
[1693597510660,0.17266578,213.17,212.73,0.86366246]
[1693597510968,0.17266578,213.16,212.74,0.86366246]
[1693597511163,0.17266578,213.15,212.7,0.07694937]
[1693597511359,0.17266578,213.14,212.71,0.86366018]
[1693597511668,0.17266578,213.13,212.71,0.86366018]
[1693597511861,0.17266578,213.12,212.71,0.86366018]
[1693597512064,0.17266578,213.11,212.71,0.86366018]
[1693597512266,0.17266578,213.1,212.71,0.86366018]
[1693597512461,0.17266578,213.09,212.71,0.86366018]
[1693597512662,0.17266578,213.21,212.72,0.86366018]
[1693597512862,0.17266578,213.2,212.7,0.86366018]
[1693597513064,0.17266578,213.19,212.71,0.86366018]
[1693597513266,0.17266578,213.18,212.72,0.86366018]
[1693597513468,0.17266578,213.17,212.73,0.86366018]
[1693597513769,0.17266578,213.16,212.74,0.86366018]
[1693597513965,0.17266578,213.15,212.69,0.07694937]
[1693597514170,0.17266578,213.14,212.7,0.86366917]
[1693597514364,0.17266578,213.13,212.7,0.86366917]
[1693597514563,0.17266578,213.12,212.7,0.86366917]
[1693597514763,0.17266578,213.11,212.7,0.86366917]
[1693597514964,0.17266578,213.1,212.7,0.86366917]
[1693597515169,0.17266578,213.09,212.7,0.86366917]
[1693597515368,0.17266578,213.08,212.7,0.86366917]
[1693597515568,0.17266578,213.07,212.7,0.86366917]
[1693597515870,0.17266578,213.06,212.7,0.86366917]
[1693597516071,0.17266578,213.05,212.7,0.86366917]
[1693597516270,5.12757544,213.24,212.7,0.86366917]
[1693597516471,0.17273316,213.23,212.7,0.86366917]
[1693597517472,0.17273316,213.23,212.71,0.86366917]
[1693597517666,0.17273316,213.23,212.72,0.86366917]
[1693597517870,0.17273316,213.23,212.73,0.86366917]
[1693597518070,0.17273316,213.23,212.74,0.86366917]
[1693597518270,0.17273316,213.23,212.75,0.86366917]
[1693597518473,0.17273316,213.23,212.69,0.07694937]
[1693597518674,0.17273316,213.23,212.7,0.86366347]
[1693597518874,0.17273316,213.22,212.7,0.86366347]
[1693597519066,0.17273316,213.21,212.7,0.86366347]
[1693597519268,0.17273316,213.2,212.7,0.86366347]
[1693597519467,0.17273316,213.19,212.7,0.86366347]
[1693597519670,0.17273316,213.18,212.7,0.86366347]
[1693597519974,0.17273316,213.17,212.7,0.86366347]
[1693597520173,0.17273316,213.16,212.7,0.86366347]
[1693597520366,0.17273316,213.15,212.7,0.86366347]
[1693597520567,0.17273316,213.14,212.7,0.86366347]
[1693597520769,0.17273316,213.13,212.7,0.86366347]
[1693597520967,0.17273316,213.12,212.7,0.86366347]
[1693597521171,0.17273316,213.11,212.7,0.86366347]
[1693597521369,0.17273316,213.1,212.7,0.86366347]
[1693597521574,0.17273316,213.09,212.7,0.86366347]
[1693597521774,5.12757544,213.25,212.7,0.86366347]
[1693597521775,0.17273316,213.08,212.7,0.86366347]
[1693597521969,0.17273316,213.07,212.7,0.86366347]
[1693597522176,0.17273316,213.06,212.7,0.86366347]
[1693597522376,5.12757544,213.25,212.7,0.86366347]
[1693597522569,0.17273246,213.24,212.7,0.86366347]
[1693597523176,0.17273246,213.23,212.7,0.86366347]
[1693597523377,0.17273246,213.22,212.7,0.86366347]
[1693597523675,0.17273246,213.21,212.7,0.86366347]
[1693597523871,0.17273246,213.2,212.7,0.86366347]
[1693597524069,0.17273246,213.19,212.7,0.86366347]
[1693597524273,0.17273246,213.18,212.7,0.86366347]
[1693597524476,0.17273246,213.17,212.7,0.86366347]
[1693597524672,0.17273246,213.16,212.7,0.86366347]
[1693597524878,0.17273246,213.15,212.7,0.86366347]
[1693597525077,0.17273246,213.14,212.7,0.86366347]
[1693597525280,0.17273246,213.13,212.7,0.86366347]
[1693597525479,0.17273246,213.12,212.7,0.86366347]
[1693597525673,0.17273246,213.11,212.7,0.86366347]
[1693597525876,5.12757544,213.26,212.7,0.86366347]
[1693597525877,0.17273246,213.1,212.7,0.86366347]
[1693597526074,0.17273246,213.09,212.7,0.86366347]
[1693597526278,0.17273246,213.08,212.7,0.86366347]
[1693597526477,0.17273246,213.07,212.7,0.94061284]
[1693597526679,0.17273246,213.06,212.71,0.86366347]
[1693597526878,5.12757544,213.26,212.71,0.86366347]
[1693597527080,0.17273414,213.25,212.71,0.86366347]
[1693597527279,0.17273414,213.25,212.72,0.86366347]
[1693597527581,5.30030958,213.25,212.73,0.86366347]
[1693597527781,0.17273414,213.24,212.74,0.86366347]
[1693597527981,0.17273414,213.24,212.7,0.07694937]
[1693597527982,0.17273414,213.24,212.75,0.86366347]
[1693597528178,0.17273414,213.24,212.7,0.07694937]
[1693597528483,0.17273414,213.24,212.71,0.86366888]
[1693597530283,0.17273414,213.24,212.71,0.94061825]
[1693597530583,0.17273414,213.24,212.72,0.86366888]
[1693597531485,0.17273414,213.24,212.72,0.94061825]
[1693597531680,0.17273414,213.24,212.73,0.86366888]
[1693597531978,0.17273414,213.24,212.74,0.86366888]
[1693597532183,0.17273414,213.24,212.73,0.86366888]
[1693597532382,0.17273414,213.24,212.74,0.86366888]
[1693597532582,0.17273414,213.24,212.75,0.86366888]
[1693597532782,0.17273414,213.24,212.72,0.07694937]
[1693597532783,5.30030958,213.24,212.72,0.07694937]
[1693597532983,0.17273414,213.23,212.73,0.86364345]
[1693597533283,0.17273414,213.23,212.73,0.94059282]
[1693597533479,0.17273414,213.23,212.74,0.86364345]
[1693597534383,5.30030958,213.23,212.74,0.94059282]
[1693597534582,0.17273414,213.22,212.75,0.86364345]
[1693597536486,0.17273414,213.22,212.73,0.07694937]
[1693597536680,0.17273414,213.22,212.74,0.86363957]
[1693597536882,0.17273414,213.22,212.74,0.94058894]
[1693597537084,0.17273414,213.22,212.75,0.86363957]
[1693597537587,5.30030958,213.22,212.75,0.86363957]
[1693597537887,0.17273414,213.21,212.75,0.86363957]
[1693597538587,5.30030958,213.21,212.75,0.94058894]
[1693597538788,0.17273414,213.2,212.75,0.07694937]
[1693597539485,0.17273414,213.2,212.76,0.07694937]
[1693597539887,5.30030958,213.2,212.76,0.07694937]
[1693597540089,0.17273414,213.19,212.76,0.07694937]
[1693597540694,5.30030958,213.19,212.77,0.07694937]
[1693597540890,0.17273414,213.18,212.77,0.07694937]
[1693597541488,0.17273414,213.18,212.78,0.07694937]
[1693597541990,0.17273414,213.18,212.79,0.07694937]
[1693597542590,5.12757544,213.17,212.79,0.07694937]
[1693597542789,0.17273414,213.16,212.79,0.07694937]
[1693597543491,0.17273414,213.16,212.78,0.07694937]
[1693597546191,5.30030958,213.16,212.78,0.07694937]
[1693597546392,0.17273414,213.15,212.78,0.07694937]
[1693597549492,0.17273414,213.15,212.77,0.07694937]
[1693597549989,0.17273414,213.15,212.78,0.07694937]
[1693597550195,0.17273414,213.15,212.77,0.07694937]
[1693597552297,5.30030958,213.15,212.77,0.07694937]
[1693597552498,0.17273414,213.14,212.77,0.07694937]
[1693597554694,0.17273414,213.14,212.76,0.07694937]
[1693597556297,5.30030958,213.14,212.76,0.07694937]
[1693597556502,0.17273414,213.13,212.76,0.07694937]
[1693597562807,0.17273414,213.13,212.75,0.07694937]
[1693597563008,5.30030958,213.13,212.75,0.07694937]
[1693597563208,0.17273414,213.12,212.74,0.07694937]
[1693597564205,0.17273414,213.12,212.73,0.07694937]
[1693597565407,0.17273414,213.12,212.72,0.07694937]
[1693597567507,0.17273414,213.11,212.72,0.07694937]
[1693597567707,0.17273414,213.13,212.72,0.07694937]
[1693597567903,0.17273414,213.12,212.72,0.07694937]
[1693597568105,0.17273414,213.13,212.72,0.07694937]
[1693597568307,0.17273414,213.12,212.71,0.07694937]
[1693597568507,0.17273414,213.13,212.71,0.07694937]
[1693597568707,0.17273414,213.12,212.71,0.07694937]
[1693597568909,0.17273414,213.11,212.71,0.07694937]
[1693597569110,0.17273414,213.1,212.71,0.07694937]
[1693597569410,0.17273414,213.09,212.71,0.07694937]
[1693597569610,0.17273414,213.08,212.71,0.07694937]
[1693597569911,0.17273414,213.07,212.71,0.07694937]
[1693597570112,0.17273414,213.13,212.71,0.07694937]
[1693597570308,0.17273414,213.12,212.71,0.07694937]
[1693597570611,0.17273414,213.11,212.71,0.07694937]
[1693597570811,0.17273414,213.1,212.71,0.07694937]
[1693597571009,0.17273414,213.13,212.71,0.07694937]
[1693597571210,0.17273414,213.12,212.71,0.07694937]
[1693597571409,0.17273414,213.11,212.71,0.07694937]
[1693597571710,0.17273414,213.1,212.71,0.07694937]
[1693597571909,0.17273414,213.13,212.71,0.07694937]
[1693597572110,0.17273414,213.12,212.71,0.07694937]
[1693597572306,0.17273414,213.11,212.71,0.07694937]
[1693597572612,0.17273414,213.1,212.71,0.07694937]
[1693597572913,0.17273414,213.09,212.71,0.07694937]
[1693597573114,0.17273414,213.08,212.71,0.07694937]
[1693597573314,0.17273414,213.13,212.7,0.07694937]
[1693597573515,0.17273414,213.12,212.71,0.86376722]
[1693597573714,0.17273414,213.11,212.71,0.86376722]
[1693597573909,0.17273414,213.13,212.71,0.86376722]
[1693597574113,0.17273414,213.12,212.71,0.86376722]
[1693597574315,0.17273414,213.11,212.71,0.86376722]
[1693597574612,0.17273414,213.1,212.71,0.86376722]
[1693597574814,0.17273414,213.09,212.71,0.86376722]
[1693597575013,0.17273414,213.13,212.71,0.86376722]
[1693597575215,0.17273414,213.12,212.71,0.86376722]
[1693597575409,0.17273414,213.13,212.71,0.86376722]
[1693597575611,0.17273414,213.12,212.71,0.86376722]
[1693597575813,0.17273414,213.11,212.71,0.86376722]
[1693597576013,0.17273414,213.13,212.71,0.86376722]
[1693597576216,0.17273414,213.12,212.71,0.86376722]
[1693597576417,0.17273414,213.11,212.71,0.86376722]
[1693597576712,0.17273414,213.1,212.71,0.86376722]
[1693597576917,0.17273414,213.09,212.71,0.86376722]
[1693597577113,0.17273414,213.13,212.71,0.86376722]
[1693597577318,0.17273414,213.12,212.71,0.86376722]
[1693597577517,0.17273414,213.13,212.71,0.86376722]
[1693597577711,0.17273414,213.12,212.71,0.86376722]
[1693597577916,0.17273414,213.11,212.71,0.86376722]
[1693597578116,0.17273414,213.13,212.71,0.86376722]
[1693597578316,0.17273414,213.12,212.71,0.86376722]
[1693597578517,0.17273414,213.13,212.71,0.86376722]
[1693597578818,0.17273414,213.12,212.71,0.86376722]
[1693597579018,0.17273414,213.13,212.71,0.86376722]
[1693597579219,0.17273414,213.12,212.71,0.86376722]
[1693597579421,0.17273414,213.11,212.71,0.86376722]
[1693597579718,0.17273414,213.1,212.71,0.86376722]
[1693597579918,0.17273414,213.09,212.71,0.86376722]
[1693597580119,0.17273414,213.13,212.71,0.86376722]
[1693597580319,0.17273414,213.12,212.71,0.86376722]
[1693597580519,0.17273414,213.13,212.71,0.86376722]
[1693597580717,0.17273414,213.12,212.71,0.86376722]
[1693597580919,0.17273414,213.11,212.71,0.86376722]
[1693597581121,0.17273414,213.13,212.71,0.86376722]
[1693597581315,0.17273414,213.12,212.71,0.86376722]
[1693597581519,0.17273414,213.11,212.71,0.86376722]
[1693597581720,0.17273414,213.1,212.71,0.86376722]